[Event "68th Warsaw-ch-B 2019"]
[Site "Warsaw"]
[Date "2019.11.18"]
[Round "8.3"]
[White "Winogrodzki, Jozef"]
[Black "Mazurkiewicz, Wojciech"]
[Result "0-1"]
[ECO "C42"]
[WhiteElo "1415"]
[BlackElo "1557"]
[Annotator "NA RC"]
[PlyCount "62"]
[EventDate "2019.11.14"]
[EventType "swiss"]
[EventCountry "POL"]
[SourceTitle "playchess.com"]
[Source "ChessBase"]
[SourceQuality "1"]
[TimeControl "5400+30"]

1. e4 {[%emt 0:29:35]} e5 {[%emt 0:29:40]} 2. Nf3 {[%emt 0:00:03]} Nf6 {[%emt 0:00:05]} 3. Nc3 {[%emt 0:00:08]} Bb4 {[%emt 0:00:07]} 4. d3 {[%emt 0:00:08]} d5 {[%emt 0:00:23]} 5. exd5 {[%emt 0:00:09]} Nxd5 {[%emt 0:00:10]} 6. Bd2 {[%emt 0:00:17]} Nc6 {[%emt 0:02:15]} 7. Nxd5 {[%emt 0:02:55]} Bxd2+ {[%emt 0:04:08]} 8. Qxd2 {[%emt 0:00:23]} Qxd5 {[%emt 0:00:06]} 9. Be2 {[%emt 0:00:20]} O-O {[%emt 0:02:01]} 10. O-O {[%emt 0:00:33]} Bg4 {[%emt 0:04:29]} 11. h3 {[%emt 0:04:58]} Bh5 {[%emt 0:01:42]} 12. a3 {[%emt 0:08:53]} Rad8 {[%emt 0:04:17]} 13. Qg5 {[%emt 0:03:00]} Bg6 {[%emt 0:01:01]} 14. Rad1 {[%emt 0:00:35]} h6 {[%emt 0:03:25]} 15. Qc1 {[%emt 0:02:12]} Qe6 {[%emt 0:05:18]} 16. Rfe1 {[%emt 0:01:54]} f5 {[%emt 0:06:18]} 17. b3 {[%emt 0:01:16]} Qf6 {[%emt 0:00:37]} 18. Nh2 {[%emt 0:05:41]} Nd4 {[%emt 0:03:20]} 19. Bf1 {[%emt 0:02:47]} e4 {[%emt 0:08:06]} 20. f4 {[%emt 0:00:53]} Qb6 {[%emt 0:07:19]} 21. Kh1 {[%emt 0:00:48]} Qc6 {[%emt 0:02:53]} 22. Rd2 {[%emt 0:01:22]} Bh5 {[%emt 0:01:14]} 23. dxe4 {[%emt 0:01:20]} fxe4 {[%emt 0:00:51]} 24. g4 {[%emt 0:00:14]} e3+ {[%emt 0:01:08]} 25. Bg2 {[%emt 0:00:15]} exd2 {[%emt 0:00:24]} 26. Qxd2 {[%emt 0:00:42]} Qxc2 {[%emt 0:03:34]} 27. Qxc2 Nxc2 28. Rc1 {[%emt 0:01:57]} Bf7 {[%emt 0:02:25]} 29. Rxc2 {[%emt 0:00:21]} Bxb3 {[%emt 0:00:04]} 30. Rxc7 {[%emt 0:00:36]} Rxf4 {[%emt 0:00:14]} 31. Bxb7 {[%emt 0:02:20]} Rf7 {[%emt 0:00:20]} 0-1

[Event "68th Warsaw-ch-B 2019"]
[Site "Warsaw"]
[Date "2019.11.18"]
[Round "8.4"]
[White "Klim, Filip"]
[Black "Wilczynski, Adam"]
[Result "1-0"]
[ECO "B41"]
[WhiteElo "1634"]
[BlackElo "1617"]
[Annotator "NA RC"]
[PlyCount "77"]
[EventDate "2019.11.14"]
[EventType "swiss"]
[EventCountry "POL"]
[SourceTitle "playchess.com"]
[Source "ChessBase"]
[SourceQuality "1"]
[TimeControl "5400+30"]

1. e4 {[%emt 0:29:33]} c5 {[%emt 0:29:39]} 2. Nf3 {[%emt 0:00:06]} e6 {[%emt 0:00:07]} 3. d4 {[%emt 0:00:07]} cxd4 {[%emt 0:00:09]} 4. Nxd4 {[%emt 0:00:08]} a6 {[%emt 0:00:13]} 5. c4 {[%emt 0:00:17]} Nf6 {[%emt 0:00:20]} 6. Nc3 {[%emt 0:00:51]} Qc7 {[%emt 0:00:41]} 7. Qd3 {[%emt 0:03:41]} b6 {[%emt 0:03:35]} 8. Be2 {[%emt 0:01:59]} Bb7 {[%emt 0:00:48]} 9. O-O {[%emt 0:03:21]} Be7 {[%emt 0:03:09]} 10. Be3 {[%emt 0:03:27]} d6 {[%emt 0:00:41]} 11. f4 {[%emt 0:01:49]} Nbd7 {[%emt 0:00:30]} 12. b4 {[%emt 0:02:09]} O-O {[%emt 0:02:20]} 13. Rac1 {[%emt 0:04:42]} Rad8 {[%emt 0:03:19]} 14. Nd5 {[%emt 0:06:17]} exd5 {[%emt 0:03:53]} 15. cxd5 {[%emt 0:00:31]} Nc5 {[%emt 0:04:25]} 16. bxc5 {[%emt 0:01:31]} dxc5 {[%emt 0:01:39]} 17. Bf3 {[%emt 0:09:44]} Qd7 {[%emt 0:04:41]} 18. Nf5 {[%emt 0:04:50]} Rfe8 {[%emt 0:02:51]} 19. Qb3 {[%emt 0:04:13]} Bf8 {[%emt 0:05:13]} 20. Ng3 {[%emt 0:01:57]} b5 {[%emt 0:01:28]} 21. Bxc5 {[%emt 0:06:47]} Bxc5+ {[%emt 0:01:20]} 22. Rxc5 {[%emt 0:00:10]} h5 {[%emt 0:02:22]} 23. Qc2 {[%emt 0:03:01]} Rc8 {[%emt 0:00:42]} 24. Re1 {[%emt 0:02:58]} Bxd5 {[%emt 0:01:03]} 25. Nxh5 {[%emt 0:02:24]} Nxe4 {[%emt 0:05:14]} 26. Bxe4 {[%emt 0:03:09]} Rxc5 {[%emt 0:04:23]} 27. Qxc5 {[%emt 0:02:00]} Rxe4 {[%emt 0:01:43]} 28. Rd1 {[%emt 0:00:32]} Rc4 {[%emt 0:05:23]} 29. Qxd5 {[%emt 0:00:47]} Qa7+ {[%emt 0:00:58]} 30. Kh1 {[%emt 0:00:11]} Qe3 {[%emt 0:01:19]} 31. Qg5 {[%emt 0:00:46]} Qd4 {[%emt 0:01:23]} 32. Re1 {[%emt 0:00:50]} Rc8 {[%emt 0:00:51]} 33. f5 {[%emt 0:00:29]} Qc3 {[%emt 0:01:36]} 34. Rg1 {[%emt 0:00:32]} Rc5 {[%emt 0:00:59]} 35. h3 {[%emt 0:00:51]} b4 {[%emt 0:00:19]} 36. Rd1 {[%emt 0:00:37]} a5 {[%emt 0:00:59]} 37. Nxg7 {[%emt 0:00:15]} Qxg7 {[%emt 0:00:27]} 38. Rd8+ {[%emt 0:00:02]} Kh7 {[%emt 0:00:32]} 39. Qh5+ {[%emt 0:00:05]} 1-0

[Event "68th Warsaw-ch-B 2019"]
[Site "Warsaw"]
[Date "2019.11.18"]
[Round "8.5"]
[White "Nawalaniec, Adam"]
[Black "Sloniewska, Alicja"]
[Result "1/2-1/2"]
[ECO "B13"]
[WhiteElo "1360"]
[BlackElo "1592"]
[Annotator "NA RC"]
[PlyCount "85"]
[EventDate "2019.11.14"]
[EventType "swiss"]
[EventCountry "POL"]
[SourceTitle "playchess.com"]
[Source "ChessBase"]
[SourceQuality "1"]
[TimeControl "5400+30"]

1. e4 {[%emt 0:29:31]} c6 {[%emt 0:29:40]} 2. d4 {[%emt 0:00:03]} d5 {[%emt 0:00:20]} 3. exd5 {[%emt 0:00:03]} cxd5 {[%emt 0:00:33]} 4. Bd3 {[%emt 0:00:20]} Nc6 {[%emt 0:00:39]} 5. c3 {[%emt 0:00:03]} Nf6 {[%emt 0:00:37]} 6. Bf4 {[%emt 0:00:09]} Bg4 {[%emt 0:00:55]} 7. f3 {[%emt 0:00:08]} Bh5 {[%emt 0:00:55]} 8. Ne2 {[%emt 0:00:38]} e6 {[%emt 0:01:04]} 9. Nd2 {[%emt 0:00:14]} Bd6 {[%emt 0:00:55]} 10. O-O {[%emt 0:00:48]} O-O {[%emt 0:00:55]} 11. Bxd6 {[%emt 0:00:19]} Qxd6 {[%emt 0:00:16]} 12. Ng3 {[%emt 0:01:17]} Bg6 {[%emt 0:00:57]} 13. Nb3 {[%emt 0:01:02]} Rab8 {[%emt 0:01:27]} 14. f4 {[%emt 0:02:38]} b5 {[%emt 0:02:49]} 15. f5 {[%emt 0:02:31]} exf5 {[%emt 0:01:02]} 16. Nxf5 {[%emt 0:00:52]} Qd8 {[%emt 0:02:50]} 17. Nc5 {[%emt 0:03:36]} b4 {[%emt 0:02:37]} 18. Qa4 {[%emt 0:00:07]} Qb6 {[%emt 0:06:51]} 19. Na6 {[%emt 0:08:18]} Rb7 {[%emt 0:03:15]} 20. Nc5 {[%emt 0:03:39]} Bxf5 {[%emt 0:11:14]} 21. Rxf5 {[%emt 0:00:51]} Rc7 {[%emt 0:02:44]} 22. Raf1 {[%emt 0:04:34]} bxc3 {[%emt 0:03:34]} 23. bxc3 {[%emt 0:00:25]} Ne7 {[%emt 0:01:03]} 24. Rxf6 {[%emt 0:00:24]} gxf6 {[%emt 0:02:04]} 25. Nd7 {[%emt 0:00:15]} Qb2 {[%emt 0:04:03]} 26. Bxh7+ {[%emt 0:08:59]} Kxh7 {[%emt 0:02:42]} 27. Nxf8+ {[%emt 0:01:12]} Kg7 {[%emt 0:00:25]} 28. Nd7 {[%emt 0:00:56]} Qxc3 {[%emt 0:00:49]} 29. Nxf6 {[%emt 0:00:39]} Qe3+ {[%emt 0:00:23]} 30. Kh1 {[%emt 0:00:14]} Rc1 {[%emt 0:00:12]} 31. Qa6 {[%emt 0:02:44]} Rxf1+ {[%emt 0:06:52]} 32. Qxf1 {[%emt 0:00:02]} Qxd4 {[%emt 0:00:12]} 33. Nh5+ {[%emt 0:00:15]} Kf8 {[%emt 0:00:57]} 34. Ng3 {[%emt 0:01:53]} Qa4 {[%emt 0:01:29]} 35. Qb1 {[%emt 0:01:11]} Nc6 {[%emt 0:01:17]} 36. h3 {[%emt 0:01:37]} d4 {[%emt 0:02:43]} 37. Qf5 {[%emt 0:00:47]} Ne7 {[%emt 0:01:31]} 38. Qf4 {[%emt 0:01:35]} Qd1+ {[%emt 0:01:08]} 39. Kh2 {[%emt 0:00:04]} a6 {[%emt 0:00:30]} 40. Qb8+ {[%emt 0:00:19]} Kg7 {[%emt 0:00:05]} 41. Qe5+ {[%emt 0:00:06]} Kf8 {[%emt 0:00:10]} 42. Qb8+ {[%emt 0:00:13]} Kg7 {[%emt 0:00:05]} 43. Qe5+ {[%emt 0:00:06]} 1/2-1/2

[Event "68th Warsaw-ch-B 2019"]
[Site "Warsaw"]
[Date "2019.11.19"]
[Round "9.1"]
[White "Mazurkiewicz, Wojciech"]
[Black "Jaworski, Jakub"]
[Result "0-1"]
[ECO "B00"]
[WhiteElo "1557"]
[BlackElo "1646"]
[Annotator "NA"]
[PlyCount "60"]
[EventDate "2019.11.14"]
[EventType "swiss"]
[EventCountry "POL"]
[SourceTitle "playchess.com"]
[Source "ChessBase"]
[SourceQuality "1"]
[TimeControl "5400+30"]

1. e4 {[%emt 0:29:37]} b6 {[%emt 0:30:38]} 2. d4 {[%emt 0:00:08]} Bb7 {[%emt 0:00:07]} 3. Bd3 {[%emt 0:00:07]} Nf6 {[%emt 0:00:05]} 4. Nc3 {[%emt 0:00:26]} e6 {[%emt 0:00:06]} 5. Nge2 {[%emt 0:00:18]} c5 {[%emt 0:00:18]} 6. Bg5 {[%emt 0:07:19]} Qc8 {[%emt 0:01:24]} 7. dxc5 {[%emt 0:04:44]} bxc5 {[%emt 0:00:14]} 8. e5 {[%emt 0:05:37]} Nd5 {[%emt 0:00:08]} 9. Be4 {[%emt 0:02:08]} Nxc3 {[%emt 0:01:13]} 10. Nxc3 {[%emt 0:00:26]} h6 {[%emt 0:01:03]} 11. Be3 {[%emt 0:01:20]} Be7 {[%emt 0:04:37]} 12. Qd2 {[%emt 0:03:32]} Nc6 {[%emt 0:03:32]} 13. f4 {[%emt 0:01:47]} Nb4 {[%emt 0:02:49]} 14. a3 {[%emt 0:01:18]} Bxe4 {[%emt 0:02:06]} 15. Nxe4 {[%emt 0:04:06]} Nd5 {[%emt 0:00:26]} 16. Nd6+ {[%emt 0:06:06]} Bxd6 {[%emt 0:00:10]} 17. exd6 {[%emt 0:00:06]} Rb8 {[%emt 0:02:23]} 18. c4 {[%emt 0:02:02]} Nxe3 {[%emt 0:00:51]} 19. Qxe3 {[%emt 0:00:01]} Rxb2 {[%emt 0:00:14]} 20. O-O {[%emt 0:00:53]} Qc6 {[%emt 0:01:09]} 21. Qg3 {[%emt 0:07:02]} O-O {[%emt 0:00:07]} 22. f5 {[%emt 0:01:24]} exf5 {[%emt 0:00:04]} 23. Rxf5 {[%emt 0:02:31]} Qe4 {[%emt 0:00:31]} 24. Rf4 {[%emt 0:01:50]} Rxg2+ {[%emt 0:00:17]} 25. Qxg2 {[%emt 0:00:26]} Qxf4 {[%emt 0:00:05]} 26. Rf1 {[%emt 0:03:06]} Qxd6 {[%emt 0:00:07]} 27. Rb1 {[%emt 0:01:45]} Qd3 {[%emt 0:00:28]} 28. Rb7 {[%emt 0:00:35]} Re8 {[%emt 0:00:12]} 29. Qg3 {[%emt 0:01:12]} Qd1+ {[%emt 0:00:23]} 30. Kg2 {[%emt 0:00:14]} Qd2+ {[%emt 0:00:04]} 0-1

[Event "68th Warsaw-ch-B 2019"]
[Site "Warsaw"]
[Date "2019.11.19"]
[Round "9.2"]
[White "Gierech, Pawel"]
[Black "Kwiek, Janusz"]
[Result "1-0"]
[ECO "B00"]
[WhiteElo "1652"]
[BlackElo "1496"]
[Annotator "NA"]
[PlyCount "123"]
[EventDate "2019.11.14"]
[EventType "swiss"]
[EventCountry "POL"]
[SourceTitle "playchess.com"]
[Source "ChessBase"]
[SourceQuality "1"]
[TimeControl "5400+30"]

1. e4 {[%emt 0:43:06]} d6 {[%emt 0:29:51]} 2. d4 {[%emt 0:00:29]} Nf6 {[%emt 0:00:13]} 3. Bd3 {[%emt 0:00:15]} g6 {[%emt 0:02:07]} 4. Bg5 {[%emt 0:00:41]} Bg7 {[%emt 0:00:11]} 5. Qd2 {[%emt 0:00:36]} c5 {[%emt 0:01:11]} 6. c3 {[%emt 0:02:17]} Nc6 {[%emt 0:00:43]} 7. Ne2 {[%emt 0:00:21]} O-O {[%emt 0:03:00]} 8. Bh6 {[%emt 0:00:51]} Qb6 {[%emt 0:02:21]} 9. Bxg7 {[%emt 0:00:20]} Kxg7 {[%emt 0:00:10]} 10. d5 {[%emt 0:05:18]} Ne5 {[%emt 0:00:37]} 11. b3 {[%emt 0:01:27]} Nxd3+ {[%emt 0:00:46]} 12. Qxd3 {[%emt 0:00:07]} c4 {[%emt 0:02:51]} 13. Qc2 {[%emt 0:00:56]} cxb3 {[%emt 0:00:56]} 14. axb3 {[%emt 0:00:12]} Bd7 {[%emt 0:00:31]} 15. Nd2 {[%emt 0:00:27]} Rac8 {[%emt 0:02:43]} 16. O-O {[%emt 0:02:07]} a6 {[%emt 0:00:51]} 17. Kh1 {[%emt 0:01:07]} Ng4 {[%emt 0:01:24]} 18. Kg1 {[%emt 0:01:20]} f5 {[%emt 0:01:06]} 19. h3 {[%emt 0:01:59]} Nf6 {[%emt 0:03:09]} 20. c4 {[%emt 0:02:18]} fxe4 {[%emt 0:01:23]} 21. Nxe4 {[%emt 0:01:11]} Nxd5 {[%emt 0:04:33]} 22. N4g3 {[%emt 0:02:36]} Nf6 {[%emt 0:03:00]} 23. Rad1 {[%emt 0:02:06]} d5 {[%emt 0:05:01]} 24. Qc3 {[%emt 0:02:25]} Kg8 {[%emt 0:00:56]} 25. Qe5 {[%emt 0:01:19]} dxc4 {[%emt 0:07:54]} 26. bxc4 {[%emt 0:00:31]} Qc5 {[%emt 0:02:19]} 27. Qb2 {[%emt 0:01:35]} Qc7 {[%emt 0:02:20]} 28. Rd4 {[%emt 0:02:55]} e5 {[%emt 0:01:42]} 29. Rd2 {[%emt 0:01:22]} Be6 {[%emt 0:01:24]} 30. c5 {[%emt 0:00:34]} Rfd8 {[%emt 0:01:23]} 31. Rd6 {[%emt 0:01:18]} Rxd6 {[%emt 0:00:54]} 32. cxd6 {[%emt 0:00:04]} Qxd6 {[%emt 0:00:33]} 33. Qxb7 {[%emt 0:00:12]} Rb8 {[%emt 0:02:10]} 34. Qf3 {[%emt 0:01:40]} Bd5 {[%emt 0:01:28]} 35. Qd3 {[%emt 0:00:24]} Rb3 {[%emt 0:00:29]} 36. Qd2 {[%emt 0:01:06]} Qb6 {[%emt 0:01:47]} 37. Qc2 {[%emt 0:03:30]} Qc6 {[%emt 0:00:58]} 38. Qd1 {[%emt 0:00:44]} a5 {[%emt 0:00:40]} 39. Nc1 {[%emt 0:01:01]} Rc3 {[%emt 0:00:29]} 40. Nce2 {[%emt 0:00:17]} Rc5 {[%emt 0:00:40]} 41. f3 {[%emt 0:00:24]} a4 {[%emt 0:00:21]} 42. Ne4 {[%emt 0:01:14]} Nxe4 {[%emt 0:02:51]} 43. fxe4 {[%emt 0:00:12]} Bf7 {[%emt 0:00:18]} 44. Ng3 {[%emt 0:02:06]} Qe8 {[%emt 0:00:53]} 45. Qd6 {[%emt 0:00:11]} Rc6 {[%emt 0:01:25]} 46. Qb4 {[%emt 0:00:40]} Ra6 {[%emt 0:01:18]} 47. Qb7 {[%emt 0:01:15]} Rd6 {[%emt 0:00:32]} 48. Qb4 {[%emt 0:01:07]} Qd7 {[%emt 0:00:39]} 49. Kh2 {[%emt 0:00:35]} Rd4 {[%emt 0:00:43]} 50. Qb8+ {[%emt 0:00:08]} Qd8 {[%emt 0:00:38]} 51. Qxe5 {[%emt 0:00:10]} a3 {[%emt 0:00:31]} 52. Qf4 {[%emt 0:02:50]} Qd7 {[%emt 0:00:43]} 53. Rb1 {[%emt 0:00:26]} a2 {[%emt 0:00:37]} 54. Rb8+ {[%emt 0:00:58]} Be8 {[%emt 0:00:39]} 55. Qe5 {[%emt 0:02:12]} a1=Q {[%emt 0:02:00]} 56. Rxe8+ {[%emt 0:00:08]} Qxe8 {[%emt 0:00:26]} 57. Qxe8+ {[%emt 0:00:06]} Kg7 {[%emt 0:00:21]} 58. Qe7+ {[%emt 0:00:06]} Kh6 {[%emt 0:00:29]} 59. Qf8+ {[%emt 0:01:37]} Kg5 {[%emt 0:00:20]} 60. h4+ {[%emt 0:00:03]} Kg4 {[%emt 0:00:37]} 61. Qf3+ {[%emt 0:00:15]} Kxh4 {[%emt 0:00:07]} 62. Qf4# 1-0

[Event "68th Warsaw-ch-B 2019"]
[Site "Warsaw"]
[Date "2019.11.19"]
[Round "9.3"]
[White "Podgorski, Maciej"]
[Black "Winogrodzki, Jozef"]
[Result "1-0"]
[ECO "B56"]
[WhiteElo "1737"]
[BlackElo "1415"]
[Annotator "NA"]
[PlyCount "41"]
[EventDate "2019.11.14"]
[EventType "swiss"]
[EventCountry "POL"]
[SourceTitle "playchess.com"]
[Source "ChessBase"]
[SourceQuality "1"]
[TimeControl "5400+30"]

1. e4 {[%emt 0:31:10]} c5 {[%emt 0:29:34]} 2. Nf3 {[%emt 0:00:03]} d6 {[%emt 0:00:10]} 3. d4 {[%emt 0:00:04]} cxd4 {[%emt 0:00:07]} 4. Nxd4 {[%emt 0:00:04]} Nf6 {[%emt 0:00:09]} 5. Nc3 {[%emt 0:00:01]} e5 {[%emt 0:00:10]} 6. Nb3 {[%emt 0:00:51]} Be7 {[%emt 0:01:52]} 7. Bg5 {[%emt 0:00:36]} Be6 {[%emt 0:02:16]} 8. Qd2 {[%emt 0:00:59]} a6 {[%emt 0:00:47]} 9. O-O-O {[%emt 0:00:07]} Nbd7 {[%emt 0:00:17]} 10. f4 {[%emt 0:00:31]} exf4 {[%emt 0:00:07]} 11. Bxf4 {[%emt 0:00:41]} Ne5 {[%emt 0:00:05]} 12. Nd4 Qc7 {[%emt 0:05:02]} 13. Nd5 {[%emt 0:03:48]} Nxd5 {[%emt 0:14:44]} 14. exd5 {[%emt 0:01:16]} Bd7 {[%emt 0:00:25]} 15. Nf3 {[%emt 0:02:09]} Nxf3 {[%emt 0:00:57]} 16. gxf3 {[%emt 0:00:04]} O-O-O {[%emt 0:00:37]} 17. Qb4 {[%emt 0:01:24]} Qc5 {[%emt 0:05:02]} 18. Qb3 {[%emt 0:04:36]} Rde8 {[%emt 0:03:59]} 19. Be3 {[%emt 0:01:15]} Qc7 {[%emt 0:00:03]} 20. Bb6 {[%emt 0:00:22]} Qb8 {[%emt 0:00:03]} 21. Qc4+ {[%emt 0:00:19]} 1-0

[Event "68th Warsaw-ch-B 2019"]
[Site "Warsaw"]
[Date "2019.11.19"]
[Round "9.4"]
[White "Bartodziej, Bartosz"]
[Black "Klim, Filip"]
[Result "1-0"]
[ECO "C54"]
[WhiteElo "1734"]
[BlackElo "1634"]
[Annotator "NA"]
[PlyCount "83"]
[EventDate "2019.11.14"]
[EventType "swiss"]
[EventCountry "POL"]
[SourceTitle "playchess.com"]
[Source "ChessBase"]
[SourceQuality "1"]
[TimeControl "5400+30"]

1. e4 {[%emt 0:29:34]} e5 {[%emt 0:29:47]} 2. Nf3 {[%emt 0:00:12]} Nc6 {[%emt 0:00:11]} 3. Bc4 {[%emt 0:00:12]} Bc5 {[%emt 0:00:32]} 4. c3 {[%emt 0:00:16]} Nf6 {[%emt 0:00:07]} 5. d3 {[%emt 0:00:08]} d6 {[%emt 0:00:35]} 6. Nbd2 {[%emt 0:00:41]} a6 {[%emt 0:01:44]} 7. Bb3 {[%emt 0:00:47]} h6 {[%emt 0:00:48]} 8. O-O {[%emt 0:01:32]} Ba7 {[%emt 0:00:54]} 9. Re1 {[%emt 0:00:51]} g5 {[%emt 0:02:02]} 10. d4 {[%emt 0:00:20]} g4 {[%emt 0:00:52]} 11. dxe5 {[%emt 0:01:06]} gxf3 {[%emt 0:00:30]} 12. exf6 {[%emt 0:00:07]} fxg2 {[%emt 0:00:31]} 13. e5 {[%emt 0:00:46]} Nxe5 {[%emt 0:00:50]} 14. Qf3 {[%emt 0:01:34]} Qd7 {[%emt 0:08:57]} 15. Nc4 {[%emt 0:07:04]} Qf5 {[%emt 0:15:25]} 16. Qxf5 {[%emt 0:02:16]} Bxf5 {[%emt 0:00:09]} 17. Nxe5 {[%emt 0:00:46]} dxe5 {[%emt 0:00:28]} 18. Rxe5+ {[%emt 0:00:32]} Be6 {[%emt 0:00:17]} 19. Bxe6 {[%emt 0:01:04]} fxe6 {[%emt 0:00:17]} 20. Rxe6+ {[%emt 0:00:55]} Kf7 {[%emt 0:06:24]} 21. Re1 {[%emt 0:04:00]} Kxf6 {[%emt 0:02:16]} 22. Bf4 {[%emt 0:02:39]} Rh7 {[%emt 0:01:24]} 23. Rad1 {[%emt 0:02:54]} Rf8 {[%emt 0:03:51]} 24. Bg3 {[%emt 0:07:04]} Rhf7 {[%emt 0:01:58]} 25. Rd2 {[%emt 0:05:24]} Kg7 {[%emt 0:01:58]} 26. Kxg2 {[%emt 0:01:50]} Bb6 {[%emt 0:01:46]} 27. Re4 {[%emt 0:03:20]} c6 {[%emt 0:02:58]} 28. Rde2 {[%emt 0:02:45]} Bc7 {[%emt 0:02:51]} 29. Bxc7 {[%emt 0:01:10]} Rxc7 {[%emt 0:00:12]} 30. Re7+ {[%emt 0:00:06]} Rf7 {[%emt 0:00:05]} 31. Rxc7 {[%emt 0:00:38]} Rxc7 {[%emt 0:00:02]} 32. f4 {[%emt 0:01:22]} Kf6 {[%emt 0:01:18]} 33. Kf3 {[%emt 0:00:40]} Kf5 {[%emt 0:03:03]} 34. Rd2 {[%emt 0:04:41]} Kf6 {[%emt 0:05:52]} 35. Rd6+ {[%emt 0:00:57]} Kg7 {[%emt 0:00:34]} 36. f5 {[%emt 0:01:00]} Rf7 {[%emt 0:02:08]} 37. Kf4 {[%emt 0:01:11]} Rc7 {[%emt 0:01:04]} 38. f6+ {[%emt 0:02:07]} Kg6 {[%emt 0:01:06]} 39. Ke5 {[%emt 0:04:00]} Rf7 {[%emt 0:00:42]} 40. h4 {[%emt 0:01:33]} h5 {[%emt 0:01:07]} 41. Rd8 {[%emt 0:01:00]} Rc7 {[%emt 0:02:19]} 42. Ke6 {[%emt 0:00:23]} 1-0

[Event "68th Warsaw-ch-B 2019"]
[Site "Warsaw"]
[Date "2019.11.19"]
[Round "9.5"]
[White "Lapies, Lukasz"]
[Black "Jaskulski, Jan"]
[Result "1-0"]
[ECO "A48"]
[WhiteElo "1593"]
[BlackElo "1594"]
[Annotator "NA"]
[PlyCount "53"]
[EventDate "2019.11.14"]
[EventType "swiss"]
[EventCountry "POL"]
[SourceTitle "playchess.com"]
[Source "ChessBase"]
[SourceQuality "1"]
[TimeControl "5400+30"]

1. d4 {[%emt 0:29:12]} Nf6 {[%emt 0:31:51]} 2. Nf3 {[%emt 0:00:30]} g6 3. c4 {[%emt 0:00:09]} Bg7 {[%emt 0:00:48]} 4. Nc3 {[%emt 0:02:35]} O-O {[%emt 0:00:00]} 5. e4 {[%emt 0:00:28]} d6 {[%emt 0:00:59]} 6. Bd3 {[%emt 0:00:12]} Nc6 7. a3 a5 {[%emt 0:02:16]} 8. h3 {[%emt 0:02:25]} e5 {[%emt 0:01:12]} 9. d5 {[%emt 0:00:46]} Ne7 {[%emt 0:00:17]} 10. O-O {[%emt 0:00:13]} Ne8 {[%emt 0:05:02]} 11. Be3 {[%emt 0:19:11]} f5 {[%emt 0:00:12]} 12. exf5 {[%emt 0:00:04]} gxf5 {[%emt 0:01:14]} 13. Bc2 {[%emt 0:01:04]} f4 {[%emt 0:07:19]} 14. Bd2 {[%emt 0:00:50]} Nf5 {[%emt 0:06:21]} 15. Ne4 {[%emt 0:12:15]} Nf6 {[%emt 0:11:41]} 16. Neg5 {[%emt 0:01:00]} Qe7 17. Qb1 Ne8 {[%emt 0:11:01]} 18. g4 {[%emt 0:07:26]} h6 {[%emt 0:02:10]} 19. Ne6 {[%emt 0:07:36]} Nh4 20. Nxh4 {[%emt 0:05:29]} Qxh4 {[%emt 0:06:38]} 21. Bh7+ {[%emt 0:00:13]} Kh8 {[%emt 0:00:52]} 22. Nxf8 Bxf8 {[%emt 0:01:25]} 23. Qd3 {[%emt 0:02:42]} Bxg4 {[%emt 0:01:45]} 24. Bf5 Bxf5 {[%emt 0:02:05]} 25. Qxf5 {[%emt 0:02:01]} Nf6 {[%emt 0:02:40]} 26. Be1 {[%emt 0:01:35]} h5 27. f3 1-0